Workbook

Sheet เงินทุนโครงการเศรษฐกิจชุมชน
A1: เงินทุนโครงการเศรษฐกิจชุมชน
A2: ประจำเดือน ตุลาคม 2556
A3: หมู่ที่ | B3: สัญญาเลขที่ | C3: ชื่อกลุ่มเกษตรกร | D3: ยอดเงิน | E3: กำหนดจ่ายคืน | J3: คงเหลือ
A4: 1 | B4: 3/2553 | C4: กลุ่มเกษตรกรทำนาข้าวม.1 | D4: =100000-15000-15000 -> 70000 | E4: 20/8/56 15,000 20/8/57 เงิน20,000 เงิน 50,000 สิงหาคม 2558 | J4: =D4 -> 70000
A5: 2 | B5: 1/2553 | C5: กลุ่มโรงสีชุมชนบ้านทะเลปัง | D5: =40000-20000 -> 20000 | E5: 12/10/56 เงิน 20,000 บาท 20,000.- ตามลำดับ | J5: =D5 -> 20000
A6: 3 | B6: 1/2551 | C6: กลุ่มเย็บผ้าบ้านศาลาแก้ว | D6: =55000-15408 -> 39592 | E6: 11/04/55 25,000.- 30,000.- ตามลำดับ | J6: 39592
A7: 4 | B7: 1/2555 | C7: กลุ่มทำนาบ้านศาลาแก้ว ม.3 | D7: =100000-20000 -> 80000 | E7: 22/8/56 20,000.- 20,000.-20,000.-20,000-และ20,000.- ตามลำดับ | J7: 80000
A8: 5 | B8: 2/2553 | C8: เลี้ยงสัตว์ปีกบ้านหัวลำภู ม.4 | D8: =60000-20000 -> 40000 | E8: 10/05/56, 10/05/57, 10/05/58,ปีละ 20,000 | J8: =D8 -> 40000
A9: 6 | B9: 1/2554 | C9: กลุ่มผลผลิตเพื่อการเกษตร | D9: =80000-20000 -> 60000 | E9: 31/5/56 เงิน20,000 บาท 20,000.- 20,000.-และ20,000.- ตามลำดับ | J9: 60000
C10: บ้านโคกหลวง ม.6
A11: 7 | B11: 3/2554 | C11: เลี้ยงสัตว์เศรษฐกิจบ้านบางไร่ ม.8 | D11: =80000-20000 -> 60000 | E11: 16/08/56 เงิน 20,000 20,0000 20,000 และ 20,000 ตามลำดับ | J11: 60000
A12: 8 | B12: 2/2554 | C12: กลุ่มกองทุนหมุนเวียน ศูนย์ | D12: =80000-20000 -> 60000 | E12: 12/07/56 เงิน 20,000 20,0000 20,000 และ 20,000 ตามลำดับ | J12: 60000
C13: ส่งเสริมและผลิตข้าวชุมชนฯม.9
A14: 9 | B14: 9/2548 | C14: เลี้ยงโคบ้านคลองขุด ม10 | D14: 5384 | E14: ชำระครั้งสุดท้ายวันที่ 10 กันยายน 2555 | J14: 5384
A15: 10 | B15: 1/2556 | C15: กลุ่มทำขนมบ้านพัฒนา ม.11 | D15: =100000 -> 100000 | E15: ชำระงวดละ 20,000- บาทเริ่ม 2 /08/57-2/0861 | J15: =D15 -> 100000
C20: รวม | D20: =SUM(D4:D19) -> 534976 | J20: 534976
C23: =861183.01+1673496 -> 2534679.01

Sheet ทดลอง
A1: องค์การบริหารส่วนตำบลหัวไทร
A2: งบทดลอง
A3: ณ วันที่ 30 พฤศจิกายน 2556
A4: รายการ | E4: รหัสบัญชี | F4: เดบิต | G4: เครดิต | I4: =876472.62+1448052.94-944931.64+6976440.54-7380060.29 -> 975974.17
B5: เงินสด | E5: 10 | I5: =14359822.01+18763-2996839.87+944931.64+7380060.29+62058.57-2393178.49 -> 17375617.15
B6: เงินฝากธนาคาร กรุงไทย (กระแสรายวัน) 802-6-01908-3 | E6: 21 | F6: =876472.62+1448052.94-944931.64+6976440.54-7380060.29 -> 975974.17 | I6: =2068621.5 -> 2068621.5 | J6: =158000 -> 158000
B7: เงินฝากธนาคาร ธ.ก.ส. (ออมทรัพย์) 715-2-41562-7 | E7: 22 | F7: =14359822.01+18763-2996839.87+944931.64+7380060.29+62058.57-2393178.49 -> 17375617.15 | I7: =14438429.42 -> 14438429.42
B8: เงินฝากธนาคาร ธ.ก.ส. (ออมทรัพย์) 715-2-46719-5 | E8: 22 | F8: =2068621.5 -> 2068621.5 | I8: =SUM(I4:I7) -> 34858642.24 | J8: =231130 -> 231130
B9: เงินฝากธนาคาร ออมสิน (ออมทรัพย์) 05331067844-5 | E9: 22 | F9: =14438429.42 -> 14438429.42 | J9: =11410 -> 11410
B10: เงินฝากจังหวัด | F10: =30000+7200-7200 -> 30000
B11: ลูกหนี้-ภาษีโรงเรือนและที่ดิน | E11: 81 | F11: 12480 | J11: =36330 -> 36330
B12: ลูกหนี้-ภาษีบำรุงท้องที่ | E12: 82 | F12: =69255.72-1251.3-3171.92 -> 64832.5 | J12: =12747 -> 12747
B13: ลูกหนี้-ภาษีป้าย | E13: 83 | F13: 400 | J13: =332265.5+118800 -> 451065.5
B14: ลูกหนี้เงินยืม-เงินงบประมาณ | E14: 090 | F14: =39600 -> 39600 | J14: =15200 -> 15200
B15: งบกลาง | E15: 0 | F15: =211446+58000+1755500 -> 2024946 | I15: =211446+58000+1755500 -> 2024946 | J15: =25167.23 -> 25167.23
B16: เงินเดือน (ฝ่ายการเมือง) | E16: 100 | F16: =243060+243060 -> 486120 | I16: =243060+243060 -> 486120 | J16: =SUM(J6:J15) -> 941049.73
B17: เงินเดือน (ฝ่ายประจำ) | F17: =245358+243210 -> 488568 | I17: =245358+243210 -> 488568
B18: ค่าจ้างประจำ | E18: 120 | F18: =12040+12040 -> 24080 | I18: =12040+12040 -> 24080 | J18: =245358+242450 -> 487808
B19: ค่าจ้างชั่วคราว | E19: 130 | F19: =45950+45950 -> 91900 | I19: =45950+45950 -> 91900 | J19: =12040+12040 -> 24080
B20: ค่าตอบแทน | E20: 200 | F20: =14800+50281 -> 65081 | I20: =14800+50281 -> 65081 | J20: =45950+45950 -> 91900
B21: ค่าใช้สอย | E21: 250 | F21: =20816+118980-2628 -> 137168 | I21: =20816+118980-2628 -> 137168 | J21: =SUM(J18:J20) -> 603788
B22: ค่าวัสดุ | E22: 270 | F22: =1735+59845+2628 -> 64208 | I22: =1735+59845+2628 -> 64208
B23: ค่าสาธารณูปโภค | E23: 300 | F23: =70722.6+15679.03 -> 86401.63 | I23: =70722.6+15679.03 -> 86401.63
B24: ค่าครุภัณฑ์ | E24: 450 | F24: 6900 | I24: 6900
B25: รายจ่ายค้างจ่าย | E25: 600 | G25: =1960370-1117870-419500 -> 423000 | I25: =SUM(I15:I24) -> 3475372.63
B26: ลูกหนี้-เงินยืมเงินสะสม | F26: =986320-3300+1055200-1755500 -> 282720
B27: รายจ่ายรอจ่าย | G27: 896000 | I27: =SUM(I15:I26) -> 6950745.26
B28: เงินสะสม | E28: 700 | G28: 14535979.25 | I28: 865437.6
B29: เงินทุนสำรองเงินสะสม | E29: 703 | G29: 11996906.39
B30: รายรับ (หมายเหตุ 1) | E30: 821 | G30: =1461984.65+7008583.43 -> 8470568.08
B31: เงินรับฝาก (หมายเหตุ 2) | E31: 900 | G31: 372972.15
B32: เงินทุนโครงการเศรษฐกิจชุมชน | G32: =2068621.5 -> 2068621.5
F33: =SUM(F5:F32) -> 38764047.37 | G33: =SUM(G24:G32) -> 38764047.37 | J33: =F33-G33 -> 0
B36: (นางข้อหนัน เจะดุหมัน) | D36: (นายเสน่ห์ อ่อนเกตุพล) | F36: (นายสมบูรณ์ ขลุกเอียด)
B37: ผู้อำนวยการกองคลัง | D37: ปลัดองค์การบริหารส่วนตำบล | F37: นายกองค์การบริหารส่วนตำบลหัวไทร
F39: =F33-G33 -> 0

Sheet หมายเหตุ1
A2: องค์การบริหารส่วนตำบลหัวไทร อำเภอหัวไทร จังหวัดนครศรีธรรมราช
A3: รายรับจริงประกอบงบทดลองและรายงานรับ-จ่ายเงินสด (หมายเหตุ 1)
A4: ณ วันที่ 30 พฤศจิกายน 2556
A5: รายการ | G5: รหัสบัญชี | H5: ประมาณการ | I5: รับจริง
A6: รายได้จัดเก็บเอง
B7: ภาษีจัดเก็บเอง
B8: หมวดภาษีอากร | G8: 100
B9: 1) | C9: ภาษีโรงเรือนและที่ดิน | G9: 101 | H9: 480000
B10: 2) | C10: ภาษีบำรุงท้องที่ | G10: 102 | H10: 40000 | I10: =1013.71+3916.89 -> 4930.6
B11: 3) | C11: ภาษีป้าย | G11: 103 | H11: 100000
A12: รวม | H12: =SUM(H9:H11) -> 620000 | I12: =SUM(I9:I11) -> 4930.6
B13: หมวดค่าธรรมเนียม ค่าปรับและใบอนุญาต | G13: 120
B14: 1) | C14: ค่าธรรมเนียมเกี่ยวกับการควบคุมอาคาร
B15: 2) | C15: ค่าธรรมเนียมเกี่ยวกับใบอนุญาตการพนัน | G15: 123 | H15: 0
B16: 3) | C16: ค่าธรรมเนียมเก็บและขนขยะมูลฝอย | G16: 126 | H16: 90000 | I16: =7740 -> 7740
B17: 4) | C17: ค่าธรรมเนียมจดทะเบียนพาณิชย์ | H17: 2000 | I17: =100 -> 100
B18: 5) | C18: ค่าปรับผู้กระทำผิดกฎจราจรทางบก | G18: 137 | H18: 5000
B19: 6) | C19: ค่าปรับการผิดสัญญา | G19: 140 | H19: 0 | I19: =1680 -> 1680
B20: 7) | C20: ค่าใบอนุญาตประกอบการค้าสำหรับกิจการที่เป็นอันตรายต่อสุขภาพ
B21: 8) | C21: ค่าใบอนุญาตจัดตั้งสถานที่จำหน่ายอาหารหรือสถานที่
C22: สะสมอาหาร หรือพื้นที่ใดซึ่งมี่พื้นที่ 200 ตรารางเมตร
B23: 9) | C23: ค่าใบอนุญาตให้ตั้งตลาดเอกชน | H23: 4500
B24: 10) | C24: ค่าใบอนุญาตอื่น ๆ | H24: 500 | I24: 720
A25: รวม | H25: =SUM(H14:H24) -> 102000 | I25: =SUM(I15:I24) -> 10240
B29: หมวดรายได้จากทรัพย์สิน | G29: 200
B30: 1) | C30: ดอกเบี้ยเงินฝากธนาคาร | G30: 203 | H30: 200000
A31: รวม | H31: =SUM(H30) -> 200000 | I31: =SUM(I30) -> 0
B32: หมวดรายได้จากสาธารณูปโภคและการพาณิชย์ | G32: 250
B33: 1) | C33: รายได้จากสาธารณูปโภคอื่น ๆ(การจำหน่ายน้ำประปา) | G33: 253 | H33: 126000 | I33: =12198+18706 -> 30904
A35: รวม | H35: =SUM(H33:H34) -> 126000 | I35: =SUM(I33:I34) -> 30904
A39: รายการ | G39: รหัสบัญชี | H39: ประมาณการ | I39: รับจริง
B40: หมวดรายได้เบ็ดเตล็ด | G40: 300
B41: 1) | C41: ค่าขายแบบแปลน | G41: 302 | H41: 48000
B42: 2) | C42: ค่ารับรองสำเนาและถ่ายเอกสาร | G42: 305 | H42: 0
B43: 3) | C43: รายได้เบ็ดเตล็ดอื่น ๆ | G43: 307 | H43: 2000
A44: รวม | H44: =SUM(H41:H43) -> 50000 | I44: =SUM(I41:I43) -> 0
B45: รายได้ที่รัฐบาลเก็บแล้วจัดสรรให้องค์กรปกครองส่วนท้องถิ่น
B46: หมวดภาษีจัดสรร
B47: 1) | C47: พรบ.กำหนดแผนฯจากภาษีมูลค่าเพิ่ม | G47: 1002 | H47: 7900000 | I47: =598437.07+690994.37 -> 1289431.44
B48: 2) | C48: ภาษีมูลค่าเพิ่ม 1 ใน 9 | G48: 1002 | H48: 3200000 | I48: =253766.33+334593.27 -> 588359.6
B49: 3) | C49: ภาษีสุรา | H49: 1400000 | I49: =90604.77+190450.63 -> 281055.4
B50: 4) | C50: ภาษีสรรพสามิต | H50: 3150000 | I50: =203282.75+207237.27 -> 410520.02
B51: 5) | C51: ภาษีธุรกิจเฉพาะ | G51: 1004 | H51: 80000
B52: 6) | C52: ค่าภาคหลวงแร่ | G52: 1010 | H52: 100000 | I52: =34423.48 -> 34423.48
B53: 7) | C53: ค่าภาคหลวงปิโตรเลียม | G53: 1011 | H53: 100000 | I53: =34035.54 -> 34035.54
B54: 8) | C54: ค่าธรรมเนียมจดทะเบียนสิทธิและนิติกรรมที่ดิน | G54: 1013 | H54: 2570000 | I54: =231500+243693 -> 475193
B55: 9) | C55: ภาษีจัดสรรอื่น ๆ | H55: 2000 | I55: 2003
C56: รวม | H56: =SUM(H47:H55) -> 18502000 | I56: =SUM(I47:I55) -> 3115021.48
B57: รายได้ที่รัฐบาลอุดหนุนให้องค์กรปกครองส่วนท้องถิ่น
B58: หมวดเงินอุดหนุน
B59: 1) | C59: เงินอุดหนุนทั่วไปตามอำนาจหน้าที่และภารกิจถ่ายโอนเลือกทำฯ | H59: 8400000
C60: รวม | H60: =SUM(H59:H59) -> 8400000 | I60: =SUM(I59:I59) -> 0
C61: รวมรายรับตามตามข้อบัญญัติ | H61: =H12+H25+H31+H35+H44+H56+H60 -> 28000000 | I61: =I12+I25+I31+I35+I44+I56+I60 -> 3161096.08
A82: รายการ | G82: รหัสบัญชี | H82: ประมาณการ | I82: รับจริง
B83: รายได้ที่รัฐบาลอุดหนุนให้โดยระบุวัตถุประสงค์
B84: 1) | C84: เบี้ยยังชีพผู้สูงอายุ | I84: 5283600
B85: 2) | C85: ค่าจ้างลูกจ้างประจำสถานีสูบน้ำด้วยไฟฟ้า | I85: 24180
B86: 3) | C86: เงินเพิ่มการครองชีพ-ลูกจ้างประจำสถานีสูบน้ำ | I86: 390
B87: 4) | C87: เงินช่วยเหลือบุตรการศึกษาบุตร ลูกจ้างประจำสถานีสูบน้ำ | I87: 1302
B88: 5)
B89: 6)
C91: รวม | I91: =SUM(I84:I90) -> 5309472
A92: รวมรายรับทั้งสิ้น | H92: =SUM(H82:H91) -> 0 | I92: =I61+I91 -> 8470568.08
B100: (นางข้อหนัน เจะดุหมัน) | F100: (นายเสน่ห์ อ่อนเกตุพล) | H100: (นายสมบูรณ์ ขลุกเอียด)
B101: ผู้อำนวยการกองคลัง | F101: ปลัดองค์การบริหารส่วนตำบล | H101: นายกองค์การบริหารส่วนตำบลหัวไทร

Sheet รับเงินสด
A1: องค์การบริหารส่วนตำบลหัวไทร
A2: อำเภอหัวไทร จังหวัดนครศรีธรรมราช | D2: ปีงบประมาณ 2557
A3: รายงานรับ-จ่ายเงินสด
A4: ณ วันที่ 30 พฤศจิกายน 2556
A5: จนถึงปัจจุบัน | D5: รหัส | E5: เดือนนี้
A6: ประมาณการ | B6: เกิดขึ้นจริง | C6: รายการ | D6: บัญชี
A7: บาท | B7: บาท | E7: บาท
B8: 31743345.55 | C8: ยอดยกมา | E8: 30213321.62
C9: รายรับ (หมายเหตุ 1)
A10: 620000 | B10: =1013.71+3916.89 -> 4930.6 | C10: ภาษีอากร | D10: 100 | E10: 3916.89 | H10: =1013.71 -> 1013.71
A11: 102000 | B11: =720+9520 -> 10240 | C11: ค่าธรรมเนียม ค่าปรับและใบอนุญาต | D11: 120 | E11: =7740+100+1680 -> 9520 | H11: =720 -> 720
A12: 200000 | C12: รายได้จากทรัพย์สิน | D12: 200
A13: 126000 | B13: =12198+18706 -> 30904 | C13: รายได้จากสาธารณูปโภคและการพาณิชย์ | D13: 250 | E13: 18706 | H13: 12198
A14: 50000 | C14: รายได้เบ็ดเตล็ด | D14: 0300
C15: รายได้จากทุน | D15: 0350
A16: 18502000 | B16: =1448052.94+1666968.54 -> 3115021.48 | C16: ภาษีจัดสรร | D16: 1000 | E16: =690994.37+334593.27+190450.63+207237.27+243693 -> 1666968.54 | H16: =34035.54+34423.48+598437.07+253766.33+90604.77+203282.75+231500+2003 -> 1448052.94
A17: 8400000 | C17: เงินอุดหนุนทั่วไป | D17: 2000 | H17: =SUM(H10:H16) -> 1461984.65
B18: =5309472 -> 5309472 | C18: เงินอุดหนุนทั่วไปที่ระบุวัตถุประสงค์ | D18: 3000 | E18: =5283600+24180+390+1302 -> 5309472
B19: =1251.3+3171.92 -> 4423.22 | C19: ลูกหนี้ -ภาษีบำรุงท้องที่ | D19: 082 | E19: 3171.92
B20: =11176.46+34927.49 -> 46103.95 | C20: เงินรับฝาก (หมายเหตุ 2) | E20: 34927.49
C21: งบกลาง
B22: 3300 | C22: ลูกหนี้-เงินยืมเงินสะสม
C23: เงินทุนสำรองเงินสะสม
C24: เงินทุนโครงการเศรษฐกิจชุมชน
A26: =SUM(A10:A25) -> 28000000 | B26: =SUM(B10:B25) -> 8524395.25 | C26: รวมรายรับ | E26: =SUM(E10:E25) -> 7046682.84
E29: .
A30: (นางข้อหนัน เจะดุหมัน) | C30: (นายเสน่ห์ อ่อนเกตุพล) | D30: (นายสมบูรณ์ ขลุกเอียด)
A31: ผู้อำนวยการกองคลัง | C31: ปลัดองค์การบริหารส่วนตำบล | D31: นายกองค์การบริหารส่วนตำบลหัวไทร

Sheet จ่ายเงินสด
A1: จนถึงปัจจุบัน | D1: รหัส | N1: จนถึงปัจจุบัน | Q1: รหัส
A2: ประมาณการ | B2: เกิดขึ้นจริง | C2: รายการ | D2: บัญชี | E2: เกิดขึ้นจริง | N2: ประมาณการ | O2: เกิดขึ้นจริง | P2: รายการ | Q2: บัญชี | R2: เกิดขึ้นจริง
A3: บาท | B3: บาท | E3: บาท | N3: บาท | O3: บาท | R3: บาท
C4: รายจ่าย | P4: รายจ่าย
A5: 1842960 | B5: =211446+58000 -> 269446 | C5: งบกลาง | D5: 5000 | E5: 58000 | N5: =1075390+100000 -> 1175390 | O5: =1024788+32798+60000+2648 -> 1120234 | P5: งบกลาง | Q5: 5000 | R5: 2648
C6: งบกลาง
A7: 2917500 | B7: =243060+243060 -> 486120 | C7: เงินเดือน(ฝ่ายการเมือง) | D7: 5100 | E7: 243060 | G7: 2917500 | H7: 118000 | N7: 2020720 | O7: =1536615+156420+164581 -> 1857616 | P7: เงินเดือน | Q7: 5100 | R7: 164581
A8: 3468000 | B8: =245358+242450 -> 487808 | C8: เงินเดือน(ฝ่ายประจำ) | E8: 242450 | G8: 3468000
A9: 148000 | B9: =12040+12040 -> 24080 | C9: ค่าจ้างลูกจ้างประจำ | D9: 5120 | E9: 12040 | G9: 148000 | H9: 576800 | N9: =81840+13560 -> 95400 | O9: =75860+7670+7670 -> 91200 | P9: ค่าจ้างประจำ | Q9: 5120 | R9: 7670
C10: ค่าจ้างลูกจ้างประจำ
A11: 740000 | B11: =45950+45950 -> 91900 | C11: ค่าจ้างชั่วคราว | D11: 5130 | E11: =45950 -> 45950 | G11: 740000 | H11: 3013240
C12: ค่าจ้างชั่วคราว | G12: =SUM(G7:G11) -> 7273500
A13: =740000+60000+25000+15000+130000 -> 970000 | B13: =14800+50281 -> 65081 | C13: ค่าตอบแทน | D13: 5200 | E13: 50281 | G13: =740000+60000+25000+15000+130000 -> 970000 | H13: 4203800 | N13: 2468200 | O13: =1586677.94+162721+171647 -> 1921045.94 | P13: ค่าตอบแทน | Q13: 5200 | R13: 171647
A14: =1834000+260000+761600+30000+55000+90000+825000+310000+815000+250000 -> 5230600 | B14: =20816+118980 -> 139796 | C14: ค่าใช้สอย | D14: 5250 | E14: =118980 -> 118980 | G14: =1834000+260000+761600+30000+55000+90000+825000+310000+815000+250000 -> 5230600 | H14: 2121000 | N14: 4475900 | O14: =1630150.98+173256+28190+90104+452591 -> 2374291.98 | P14: ค่าใช้สอย | Q14: 5250 | R14: =414033+38900-342 -> 452591
A15: =520000+100000+1061360+40000+560000+40000 -> 2321360 | B15: =1735+59845 -> 61580 | C15: ค่าวัสดุ | D15: 5270 | E15: 59845 | G15: =520000+100000+1061360+40000+560000+40000 -> 2321360 | H15: 1746080 | N15: 918000 | O15: =426094.15+39487.8-4000+91031 -> 552612.95 | P15: ค่าวัสดุ | Q15: 5270 | R15: 91031
A16: =227000+100000 -> 327000 | B16: =70722.6+15679.03 -> 86401.63 | C16: ค่าสาธารณูปโภค | D16: 5300 | E16: 15679.03 | G16: =227000+100000 -> 327000 | H16: 267250 | N16: 258050 | O16: =94639.55+17597.79+12334.96 -> 124572.3 | P16: ค่าสาธารณูปโภค | Q16: 5300 | R16: 12334.96
A17: 1829680 | C17: เงินอุดหนุน | D17: 5400 | G17: =SUM(G13:G16) -> 8848960 | H17: 3790230 | N17: 689680 | O17: =646680+13000+10000 -> 669680 | P17: เงินอุดหนุน | Q17: 5400 | R17: 10000
A18: =267250-237250 -> 30000 | C18: รายจ่ายอื่น | G18: =254000+10000+35000 -> 299000
A19: =254000+10000+35000 -> 299000 | B19: =6900 -> 6900 | C19: ค่าครุภัณฑ์ | D19: 6450 | E19: 6900 | G19: =2918000+2844900+279000+569000+362000+903000 -> 7875900 | N19: =123000+62000+92000+15000 -> 292000 | O19: =124731+61500 -> 186231 | P19: ค่าครุภัณฑ์ | Q19: 5450
A20: =2918000+2844900+279000+569000+362000+903000 -> 7875900 | C20: ค่าที่ดินและสิ่งก่อสร้าง | D20: 6500 | G20: =SUM(G18:G19) -> 8174900 | N20: =199000+374300+14600+88800 -> 676700 | O20: =261400+374000 -> 635400 | P20: ค่าที่ดินและสิ่งก่อสร้าง | Q20: 5500
B21: =39600 -> 39600 | C21: ลูกหนี้เงินยืม-เงินงบประมาณ | D21: 090 | E21: 39600 | O21: =1408484+17500+3500 -> 1429484 | P21: ค่าใช้สอย | Q21: 7250 | R21: 3500
C22: เงินสะสม | D22: 600 | O22: =693335.75+3200+209794+4000+228393.8 -> 1138723.55 | P22: ค่าวัสดุ | Q22: 7270 | R22: 228393.8
B23: =37618.74+33117.19 -> 70735.93 | C23: เงินรับฝาก (หมายเหตุ 2) | D23: 700 | E23: 33117.19 | G23: 25189929.77 | O23: =21440.74+11699.91+8082 -> 41222.65 | P23: ค่าสาธารณูปโภค | Q23: 7300 | R23: 8082
B24: =1087870+419500 -> 1507370 | C24: รายจ่ายค้างจ้าย (หมายเหตุ 3) | E24: 419500 | O24: 30435 | P24: ลูกหนี้เงินยืม-เงินงบประมาณ | Q24: 090 | R24: 342
C25: รายจ่ายรอจ่าย
C26: เงินทุนโครงการเศรษฐกิจชุมชน | O26: =5008691.89+12680.45+19892.97 -> 5041265.31 | P26: รายจ่ายค้างจ่าย | Q26: 600 | R26: 19892.97
B27: =1016320+1055960 -> 2072280 | C27: ลูกหนี้เงินยืม-เงินสะสม | E27: 1055960 | O27: =1117214.23+94979 -> 1212193.23 | P27: เงินสะสม | Q27: 700
A28: =SUM(A5:A27) -> 28000000 | B28: =SUM(B5:B27) -> 5409098.56 | C28: รวมรายจ่าย | E28: =SUM(E5:E27) -> 2401362.22 | G28: =1828453.71-1819080.71 -> 9373 | O28: 2597000 | P28: เงินอุดหนุนเฉพาะกิจ
C29: สูงกว่า | O29: 100000 | P29: เงินทุนโครงการเศรษฐกิจชุมชน
C30: รายรับ รายจ่าย | O30: =595198.76+26797.44+29876.18 -> 651872.38 | P30: เงินรับฝาก | Q30: 900 | R30: 29876.18
B31: =รับเงินสด!B26-จ่ายเงินสด!B28 -> 3115296.69 | C31: (ต่ำกว่า) | E31: =รับเงินสด!E26-จ่ายเงินสด!E28 -> 4645320.62 | N31: =SUM(N21:N30) -> 0 | O31: =SUM(O21:O30) -> 12242196.12 | P31: รวม | R31: =SUM(R21:R30) -> 290086.95
B32: =รับเงินสด!B8+รับเงินสด!B26-จ่ายเงินสด!B28 -> 34858642.24 | C32: ยอดยกไป | E32: =รับเงินสด!E8+รับเงินสด!E26-จ่ายเงินสด!E28 -> 34858642.24 | G32: =16149107.43-16304617.15 -> -155509.72 | N32: =SUM(N31,#REF!) ->  | O32: =SUM(O31,#REF!) ->  | P32: รวมรายจ่าย | R32: =SUM(R31,,#REF!) -> 
G34: =25903542.35-25163422.35 -> 740120 | P34: สูงกว่า
A35: (นางข้อหนัน เจะดุหมัน) | C35: (นายเสน่ห์ อ่อนเกตุพล) | D35: (นายสมบูรณ์ ขลุกเอียด) | P35: รายรับ รายจ่าย
A36: ผู้อำนวยการกองคลัง | C36: ปลัดองค์การบริหารส่วนตำบล | D36: นายกองค์การบริหารส่วนตำบลหัวไทร | O36: =รับเงินสด!O26-จ่ายเงินสด!O32 ->  | P36: (ต่ำกว่า) | R36: =รับเงินสด!R26-จ่ายเงินสด!R32 -> 
O37: =รับเงินสด!O8+รับเงินสด!O26-จ่ายเงินสด!O32 ->  | P37: ยอดยกไป | R37: =รับเงินสด!R8+รับเงินสด!R26-จ่ายเงินสด!R32 -> 
N39: (ลงชื่อ)........................หน.ส่วนการคลัง (ลงชื่อ)......................ปลัด อบต. (ลงชื่อ)...................นายก อบต.
N40: (นางข้อหนัน เจะดุหมัน) | P40: (นายเสน่ห์ อ่อนเกตุพล) | Q40: (นายสุทัศน์ พูลเสน)

Sheet กระแสเงินสด
A1: องค์การบริหารส่วนตำบลหัวไทร
A2: รายงานกระแสเงินสด
A3: เพียงวันที่ 31 ตุลาคม 2554
A5: รายรับ | C5: เดือนนี้ | E5: ตั้งแต่ต้นปีถึงปัจจุบัน
B6: รับเงินรายรับ(ตามงบประมาณ) | C6: 2073406.96 | E6: =2073406.96 -> 2073406.96
B7: รับเงินรับฝาก | C7: 3044.01 | E7: =3044.01 -> 3044.01
B8: รับเงินจากลูกหนี้ | C8: 24.03 | E8: =24.03 -> 24.03
B9: ลูกหนี้-เงินยืมเงินสะสม
B10: รับเงินรายจ่าย(ตาม/นอกงบประมาณ) | C10: 5500 | E10: =5500 -> 5500
B11: รับเงินกู้
B12: เงินสะสม
B13: เงินทุนสำรองเงินสะสม | C13: 19880.57 | E13: =19880.57 -> 19880.57
B14: เงินทุนโครงการเศรษฐกิจชุมชน | C14: 6626.85 | E14: =6626.85 -> 6626.85
B17: รวม | C17: =SUM(C6:C16) -> 2108482.42 | E17: =SUM(E6:E16) -> 2108482.42
A19: รายจ่าย
B20: จ่ายเงินตามงบประมาณ และเงินอุดหนุนระบุวัตถุประสงค์ | C20: 1312366.01 | E20: =1312366.01 -> 1312366.01
B21: ลูกหนี้ -เงินยืมเงินงบประมาณ | G21: =1828453.71-236366-38921.7-240800 -> 1312366.01
B22: เงินสะสม | C22: 236366 | E22: =236366 -> 236366
B23: เงินรับฝาก(หมายเหตุ 2) | C23: 38921.7 | E23: =38921.7 -> 38921.7
B24: รายจ่ายรอจ่าย
B25: รายจ่ายค้างจ่าย | C25: 240800 | E25: =240800 -> 240800 | G25: =1828453.71-236366-38921.7-240800 -> 1312366.01
B26: เงินทุนโครงการเศรษฐกิจชุมชน
B28: รวม | C28: =SUM(C20:C27) -> 1828453.71 | E28: =SUM(E20:E27) -> 1828453.71
B30: รับสูง หรือ (ต่ำ) กว่าจ่าย | C30: =C17-C28 -> 280028.71 | E30: =E17-E28 -> 280028.71

Sheet รายละเอียด
A1: องค์การบริหารส่วนตำบลหัวไทร อำเภอหัวไทร จังหวัดนครศรีธรรมราช
A2: รายละเอียดประกอบงบทดลองและรายงานรับ-จ่ายเงินสด (หมายเหตุ 2)
A3: ประจำเดือน พฤศจิกายน 2556
A5: เงินรับฝาก (หมายเหตุ 2) | B5: ยอดยกมา | C5: รับ | D5: จ่าย | E5: คงเหลือ
A7: ภาษีหัก ณ ที่จ่าย | B7: 10896.47 | C7: 6503.73 | D7: 10896.47 | E7: =B7+C7-D7 -> 6503.73
A8: ค่าใช้จ่ายภาษีบำรุงท้องที่ 5% | B8: 134.74 | C8: 398.66 | E8: 533.4
A9: ค่าส่วนลดภาษีบำรุงท้องที่ 6% | B9: 161.64 | C9: 477.93 | E9: 639.57
A10: เงินมัดจำประกันสัญญา | B10: 359969 | C10: 3290 | E10: 363259
A11: ค่ากระแสไฟฟ้า-รับจากเกษตรกร | C11: 17057.17 | D11: 15020.72 | E11: 2036.45
A12: เงินรับฝาก-จังหวัด | C12: 7200 | D12: 7200 | E12: 0
A14: รวม | B14: =SUM(B7:B13) -> 371161.85 | C14: =SUM(C7:C13) -> 34927.49 | D14: =SUM(D7:D13) -> 33117.19 | E14: =SUM(E7:E13) -> 372972.15
A19: (นางข้อหนัน เจะดุหมัน) | B19: (นายเสน่ห์ อ่อนเกตุพล) | D19: (นายสมบูรณ์ ขลุกเอียด)
A20: ผู้อำนวยการกองคลัง | B20: ปลัดองค์การบริหารส่วนตำบล | D20: นายกองค์การบริหารส่วนตำบลหัวไทร

Sheet ใบผ่านทั่วไป
O1: เลขที่ | P1: 4/2557
O2: วันที่ | P2: 30 พ.ย 2556
A3: ใบผ่านรายการบัญชีทั่วไป
A4: ฝ่าย | B4: องค์การบริหารส่วนตำบลหัวไทร
A6: รายการ | K6: รหัสบัญชี | M6: เดบิท | P6: เครดิต
A8: เดบิท | B8: เงินฝากธนาคาร ธ.ก.ส (กระแสรายวัน) 715-5-00040-9 | K8: 021 | M8: 2393178.49
B11: เครดิต เงินฝากธนคารธ.ก.ส ประเภทออมทรัพย์41561-7 | C11: เงินฝากธนาคาร ธ.ก.ส(ออมทรัพย์) 01715-2-41562-7 | K11: 021 | P11: 2393178.49
M29: =SUM(M7:O28) -> 2393178.49 | P29: =SUM(P7:R28) -> 2393178.49
A31: คำอธิบาย | C31: เพื่อบันทึกรายการผลักเงินเข้าบัญชีกระแสรายวันตามเช็คสั่งจ่าย
A33: ผู้จัดทำ | F33: ผู้อนุมัติ | M33: ผู้บันทึกบัญชี
A35: ..................................... | F35: ........................................ | M35: .....................................
O37: เลขที่ | P37: 5/2557
O38: วันที่ | P38: 30 พ.ย 2556
A39: ใบผ่านรายการบัญชีทั่วไป
A40: ฝ่าย | B40: องค์การบริหารส่วนตำบลหัวไทร
A42: รายการ | K42: รหัสบัญชี | M42: เดบิท | P42: เครดิต
A44: เดบิท | B44: เงินฝากธนาคาร ธ.ก.ส(ออมทรัพย์) 01715-2-41562-7 | K44: 021 | M44: =1379593.92+6000466.37 -> 7380060.29
B47: เครดิต เงินฝากธนคารธ.ก.ส ประเภทออมทรัพย์41561-7 | C47: เงินฝากธนาคารกรุงไทย(กระแสรายวัน)8026019083 | K47: 020 | P47: =1379593.92+6000466.37 -> 7380060.29
M58: =SUM(M43:O57) -> 7380060.29 | P58: =SUM(P43:R57) -> 7380060.29
A60: คำอธิบาย | C60: เพื่อบันทึกรายการผลักเงินจากกระแสรายวันเข้าบัญชีออมทรัพย์
A64: ผู้จัดทำ | F64: ผู้อนุมัติ | M64: ผู้บันทึกบัญชี
A66: ..................................... | F66: ........................................ | M66: .....................................
O68: เลขที่ | P68: 6/2557
O69: วันที่ | P69: 30 พ.ย 2556
A70: ใบผ่านรายการบัญชีทั่วไป
A71: ฝ่าย | B71: องค์การบริหารส่วนตำบลหัวไทร
A73: รายการ | K73: รหัสบัญชี | M73: เดบิท | P73: เครดิต
A75: เดบิท | B75: งบกลาง | K75: 022 | M75: =847300+908200 -> 1755500
B78: เครดิต เงินฝากธนคารธ.ก.ส ประเภทออมทรัพย์41561-7 | C78: ลูกหนี้-เงินยืมเงินสะสม | P78: 1755500
M88: =SUM(M74:O87) -> 1755500 | P88: =SUM(P74:R87) -> 1755500
A90: คำอธิบาย | C90: เพื่อบันทึกรายการส่งใช้เงินยืมเงินสะสมตามสัญญายืมเงินเลขที่ 1/57,3/2557 เนื่องจากได้รับเงินจัดสรร
B91: จากกรมส่งเสริมการปกครองท้องถิ่น (งวดตุลาคม-มีนาคม)
A94: ผู้จัดทำ | F94: ผู้อนุมัติ | M94: ผู้บันทึกบัญชี
A96: ..................................... | F96: ........................................ | M96: .....................................
O99: เลขที่ | P99: 4/2556
O100: วันที่ | P100: 31 ตุลาคม 2555
A101: ใบผ่านรายการบัญชีทั่วไป
A102: ฝ่าย | B102: องค์การบริหารส่วนตำบลหัวไทร
A104: รายการ | K104: รหัสบัญชี | M104: เดบิท | P104: เครดิต
A106: เดบิท | B106: ค่าใช้สอย
B109: เครดิต เงินฝากธนคารธ.ก.ส ประเภทออมทรัพย์41561-7 | C109: ลูกหนี้-เงินยืมเงินงบประมาณ
M120: =SUM(M105:O119) -> 0 | P120: =SUM(P105:R119) -> 0
A122: คำอธิบาย | C122: เพื่อบันทึกรายการส่งใช้เงินยืมตามสัญญาการยืมเงินเลขที่B00001/2556 ค่าใช้จ่ายในการเลือกตั้ง
B123: ผู้บริหารท้องถิ่นและสมาชิกสภาท้องถิ่น
A126: ผู้จัดทำ | F126: ผู้อนุมัติ | M126: ผู้บันทึกบัญชี
A128: ..................................... | F128: ........................................ | M128: .....................................
O133: เลขที่ | P133: 5/2555
O134: วันที่ | P134: 31 ตุลาคม 2554
A135: ใบผ่านรายการบัญชีทั่วไป
A136: ฝ่าย | B136: องค์การบริหารส่วนตำบลหัวไทร
A138: รายการ | K138: รหัสบัญชี | M138: เดบิท | P138: เครดิต
A140: เดบิท | B140: เงินฝากธนาคาร ธ.ก.ส (ออมทรัพย์) 715-2-41562-7 | K140: 022
B143: เครดิต เงินฝากธนคารธ.ก.ส ประเภทออมทรัพย์41561-7 | C143: เงินฝากธนาคาร ออมสิน(กระแสรายวัน) 3311001649
M153: =SUM(M139:O152) -> 0 | P153: =SUM(P139:R152) -> 0
A155: คำอธิบาย | C155: เพื่อบันทึกรายการโอนเงินจากออมสินกระแสรายวันเข้าบัญชีออมทรัพย์ธ.ก.ส 715-2-41562-7
B156: ตามการตัดจ่ายเงินค่าตอบแทนสมาชิกจ่ายาชำระหนี้เงินกู้ให้กับสมาชิก
A159: ผู้จัดทำ | F159: ผู้อนุมัติ | M159: ผู้บันทึกบัญชี
A161: ..................................... | F161: ........................................ | M161: .....................................
O165: เลขที่ | P165: 6/2555
O166: วันที่ | P166: 31 ตุลาคม 2554
A167: ใบผ่านรายการบัญชีทั่วไป
A168: ฝ่าย | B168: องค์การบริหารส่วนตำบลหัวไทร
A170: รายการ | K170: รหัสบัญชี | M170: เดบิท | P170: เครดิต
A172: เดบิท | B172: รายจ่ายผัดส่งใบสำคัญ | K172: 022 | M172: 7800
B175: เครดิต เงินฝากธนคารธ.ก.ส ประเภทออมทรัพย์41561-7 | C175: ลูกหนี้-เงินยืมเงินงบประมาณ | P175: 7800
M185: =SUM(M171:O184) -> 7800 | P185: =SUM(P171:R184) -> 7800
A187: คำอธิบาย | C187: เพื่อบันทึกรายการส่งใช้เงินยืมเงินงบประมาณรายการผัดส่งใบสำคัญ ตามสัญญาการยืมเงิน /54
A191: ผู้จัดทำ | F191: ผู้อนุมัติ | M191: ผู้บันทึกบัญชี
A193: ..................................... | F193: ........................................ | M193: .....................................
O198: เลขที่ | P198: 7/2555
O199: วันที่ | P199: 31 ตุลาคม 2554
A200: ใบผ่านรายการบัญชีทั่วไป
A201: ฝ่าย | B201: องค์การบริหารส่วนตำบลหัวไทร
A203: รายการ | K203: รหัสบัญชี | M203: เดบิท | P203: เครดิต
A205: เดบิท | B205: เงินฝากธนาคาร ธ.ก.ส (ออมทรัพย์) 715-2-41562-7 | K205: 022 | M205: 26507.42
B208: เครดิต เงินฝากธนคารธ.ก.ส ประเภทออมทรัพย์41561-7 | C208: เงินสะสม | P208: 19880.57
C209: เงินทุนสำรองเงินสะสม | P209: 6626.85
M218: =SUM(M204:O217) -> 26507.42 | P218: =SUM(P204:R217) -> 26507.42
A220: คำอธิบาย | C220: เพื่อบันทึกรายการปรับปรุงเนื่องจากรายรับยังไม่ได้บันทึกบัญชีของปี 2554เข้าบัญชีเงินสะสม
B221: จำนวน 19,880.57 บาท บัญชีเงินสำรองเงินสะสม 6,626.85 บาท
A224: ผู้จัดทำ | F224: ผู้อนุมัติ | M224: ผู้บันทึกบัญชี
A226: ..................................... | F226: ........................................ | M226: .....................................

Sheet ใบผ่านมาตรฐาน
O1: เลขที่ | P1: 1/2/57
O2: วันที่ | P2: 30 พ.ย 2556
A3: ใบผ่านรายการบัญชีมาตรฐาน
A4: ฝ่าย | B4: องค์การบริหารส่วนตำบลหัวไทร
A6: รายการ | K6: รหัสบัญชี | M6: เดบิท | P6: เครดิต
A7: เดบิท | B7: เงินสด | K7: 10
B8: เงินฝากธนาคารกรุงไทย (กระแสรายวัน) 802-6-01908-3 | K8: 21 | M8: 6976440.54
B9: เงินฝากธนาคาร ธ.ก.ส. (ออมทรัพย์) 715-2-41562-7 | K9: 22 | M9: 62058.57
B10: เงินฝากธนาคาร ธ.ก.ส. (ออมทรัพย์) 715-2-46719-5 | K10: 22
B11: เงินฝากธนาคาร ออมสิน(ออมทรัพย์) 05331067844-5 | K11: 22
C13: เครดิต | D13: เงินรายรับ | K13: 861 | P13: 7006903.43
D14: ค่าใช้จ่ายในการจัดเก็บภาษีบำรุงท้องที่ 5% | K14: 906 | P14: 398.66
D15: ค่าส่วนลดในการจัดเก็บภาษีบำรุงท้องที่ 6% | K15: 902 | P15: 477.93
D16: ลูกหนี้-ภาษีบำรุงท้องที่ | K16: 82 | P16: 3171.92
D17: เงินรับฝาก-จังหวัด | K17: 0 | P17: 7200
D18: เงินรับฝาก-ค่ากระแสไฟฟ้าจากเกษตรกร | P18: 17057.17
D19: เงินมัดจำประกันสัญญา | P19: 3290
M22: =SUM(M7:O21) -> 7038499.11 | P22: =SUM(P7:R21) -> 7038499.11
A24: คำอธิบาย เพื่อบันทึกรายการจากสมุดเงินสดรับ ไปเข้าบัญชีแยกประเภทที่เกี่ยวข้องประจำเดือน พฤศจิกายน 2556
A29: ผู้จัดทำ | F29: ผู้อนุมัติ | M29: ผู้บันทึกบัญชี
A31: ..................................... | F31: ........................................ | M31: .....................................
O34: เลขที่ | P34: 2/2/57
O35: วันที่ | P35: 30 พ.ย 2556
A36: ใบผ่านรายการบัญชีมาตรฐาน
A37: ฝ่าย | B37: องค์การบริหารส่วนตำบลหัวไทร
A39: รายการ | K39: รหัสบัญชี | M39: เดบิท | P39: เครดิต
A40: เดบิท | B40: งบกลาง | K40: 000 | M40: 58000
B41: งบกลาง | K41: 000
B42: เงินเดือน(ฝ่ายการเมือง) | K42: 100 | M42: 243060
B43: เงินเดือน(ฝ่ายประจำ) | M43: 243210
B44: ค่าจ้างประจำ | K44: 120 | M44: 12040
B45: ค่าจ้างชั่วคราว | K45: 130 | M45: =36190+9760 -> 45950
B46: ค่าจ้างชั่วคราว
B47: ค่าตอบแทน | K47: 200 | M47: 50281
B48: ค่าใช้สอย | K48: 5250 | M48: =118980-2628 -> 116352
B49: ค่าวัสดุ | K49: 5250 | M49: =59845+2628 -> 62473
B50: ค่าสาธารณูปโภค | K50: 300 | M50: 15679.03
B51: ค่าครุภัณฑ์ | K51: 450 | M51: 6900
B52: เงินภาษีหัก ณ ที่จ่าย | K52: 902 | M52: 10896.47
B53: ลูกหนี้-เงินยืมเงินงบประมาณ | K53: 90 | M53: 39600
B54: เงินรับฝาก-ค่ากระแสไฟฟ้าสถานีสูบน้ำ | M54: 15020.72
B55: เงินรับฝาก-จังหวัด | M55: 7200
B56: รายจ่ายค้างจ่าย | K56: 600 | M56: 419500
B57: ลูกหนี้-เงินยืมเงินสะสม | K57: 700 | M57: 1055200
C58: เครดิต | D58: เงินฝากธนาคาร ธ.ก.ส 715-5- 00040-9 | K58: 21 | P58: 2393178.49
D59: เงินภาษีหัก ณ ที่จ่าย | K59: 902 | P59: 6503.73
D60: เงินรายรับ (ค่าปรับ) | P60: 1680
M61: =SUM(M40:M57) -> 2401362.22 | P61: =SUM(P58:P60) -> 2401362.22
A63: คำอธิบาย เพื่อบันทึกรายการจากสมุดเงินสดจ่าย ไปเข้าบัญชีแยกประเภทที่เกี่ยวข้องประจำเดือน พฤศจิกายน 2556
A65: ผู้จัดทำ | F65: ผู้อนุมัติ | M65: ผู้บันทึกบัญชี
A66: ..................................... | F66: ........................................ | M66: .....................................
O68: เลขที่ | P68: 3/2/57
O69: วันที่ | P69: 30 พ.ย 2556
A70: ใบผ่านรายการบัญชีมาตรฐาน
A71: ฝ่าย | B71: องค์การบริหารส่วนตำบลหัวไทร
A73: รายการ | K73: รหัสบัญชี | M73: เดบิท | P73: เครดิต
A75: เดบิท | B75: เงินรายรับ | K75: 821 | M75: 7008583.43
C77: เครดิต | D77: ภาษีบำรุงท้องที่ | K77: 0102 | P77: 3916.89
D78: ค่าธรรมเนียมจัดเก็บขยะและมูลฝอย | P78: 7740
D79: ค่าจดทะเบียนพาณิชย์ | P79: 100
D80: ค่าปรับการผิดสัญญา | K80: 1010 | P80: 1680
D81: ค่าสาธารณูปโภคอื่น ๆ (จำหน่ายน้ำประปา) | K81: 0302 | P81: 18706
D82: ภาษีมูลค่าเพิ่ม ตามพรบ.กำหนดแผน | P82: 690994.37
D83: ภาษีมูลค่าเพิ่ม 1 ใน 9 | K83: 1002 | P83: 334593.27
D84: ภาษีสุรา | K84: 1005 | P84: 190450.63
D85: ภาษีสรรพสามิต | K85: 1006 | P85: 207237.27
D86: ค่าธรรมเนียมจดทะเบียนสิทธิและนิติกรรมที่ดิน | K86: 1013 | P86: 243693
D87: เงินอุดหนุนทั่วไปที่ระบุวัตถุประสงค์/เฉพาะกิจ
D88: เบี้ยยังชีพผู้สูงอายุ | P88: 5283600
D89: ค่าจ้างลูกจ้างประจำ-สถานีสูบน้ำ | P89: 24180
D90: เงินเพิ่มการครองชีพ-ลูกจ้างประจำสถานีสูบน้ำ | P90: 390
D91: เงินช่วยเหลือการศึกษาบุตรสถานีสูบน้ำ | P91: 1302
M93: =SUM(M74:O83) -> 7008583.43 | P93: =SUM(P77:R92) -> 7008583.43
A95: คำอธิบาย เพื่อบันทึกรายการจากสมุดเงินสดรับ ไปเข้าบัญชีแยกประเภทที่เกี่ยวข้องประจำเดือน พฤศจิกายน 2556
A98: ผู้จัดทำ | F98: ผู้อนุมัติ | M98: ผู้บันทึกบัญชี
A100: ..................................... | F100: ........................................ | M100: .....................................

Sheet กระทบยอด
A2: องค์การบริหารส่วนตำบลหัวไทร | Y2: ธนาคาร เพื่อการเกษตรและสหกรณ์การเกษตร | AB2: กรุงไทย จำกัด สาขาปากนัง
A3: งบกระทบยอดเงินฝากธนาคาร | Y3: เลขที่บัญชี | AD3: 802-601908-3
A6: ยอดคงเหลือตามรายงานธนาคาร ณ วันที่
A7: บวก: เงินฝากระหว่างทาง
A8: วันที่ลงบัญชี | I8: วันที่ฝากธนาคาร | Q8: จำนวนเงิน
A12: หัก: เช็คจ่ายที่ผู้รับยังไม่นำมาขึ้นเงินกับธนาคาร
A13: วันที่ | I13: เลขที่เช็ค | Q13: จำนวนเงิน
AD22: =SUM(Q14:W22) -> 0
A24: บวก: หรือ (หัก) รายการกระทบยอดอื่น ๆ
A25: รายละเอียด
A29: ยอดคงเหลือตามบัญชี ณ วันที่ | AD29: =AD6- AD7 -> 0
A32: ผู้จัดทำ | Y32: ผู้ตรวจสอบ
A34: (ลงชื่อ) | J34: วันที่ | Y34: (ลงชื่อ) | AH34: วันที่
A35: ตำแหน่ง | D35: จพง.การเงินและบัญชี | Y35: ตำแหน่ง | AB35: ผู้อำนวยการกองคลัง
A40: องค์การบริหารส่วนตำบลหัวไทร | Y40: ธนาคาร เพื่อการเกษตรและสหกรณ์การเกษตร | AB40: เพื่อการเกษตรและสหกรณ์การเกษตร
A41: งบกระทบยอดเงินฝากธนาคาร | Y41: เลขที่บัญชี | AD41: 01715-2-41562-7
A44: ยอดคงเหลือตามรายงานธนาคาร ณ วันที่ | P44: 31 ตุลาคม 2556 | AD44: 12534751.7
A45: บวก: เงินฝากระหว่างทาง
A46: วันที่ลงบัญชี | I46: วันที่ฝากธนาคาร | Q46: จำนวนเงิน
A49: หัก: เช็คจ่ายที่ผู้รับยังไม่นำมาขึ้นเงินกับธนาคาร
A50: วันที่ | I50: เลขที่เช็ค | Q50: จำนวนเงิน
A51: 20-ก.ย-56 | I51: 911828 | Q51: 1000
A52: 1956-10-09 | I52: 911880 | Q52: 196000
A53: 1956-10-25 | I53: 911888 | Q53: 1735
A54: 1956-10-25 | I54: 911895 | Q54: 782
A55: 1956-10-25 | I55: 911896 | Q55: 1500
A56: 1956-10-25 | I56: 911897 | Q56: 1941.92
A57: 1956-10-25 | I57: 911898 | Q57: 5116
AD61: =SUM(Q51:W61) -> 208074.92
AD62: =AD44-AD61 -> 12326676.78
A63: บวก: หรือ (หัก) รายการกระทบยอดอื่น ๆ
A64: รายละเอียด
A68: ยอดคงเหลือตามบัญชี ณ วันที่ | M68: 2556-10-31 | AD68: =AD44 -AD61 -> 12326676.78
A70: ผู้จัดทำ | Y70: ผู้ตรวจสอบ
A73: (ลงชื่อ) | J73: วันที่ | L73: 2556-11-01 | Y73: (ลงชื่อ) | AH73: วันที่ | AJ73: 2556-11-01
A74: ตำแหน่ง | D74: จพง.การเงินและบัญชี | Y74: ตำแหน่ง | AB74: ผู้อำนวยการกองคลัง

Sheet กระดาษทำการ
A1: กระดาษทำการกระทบยอด
A2: รายจ่ายตามงบประมาณ (จ่ายจากรายรับ)
A3: ประจำเดือน พฤศจิกายน 2556
A4: แผนงาน/งาน | C4: 110 | F4: 120 | H4: 210 | K4: 220 | M4: 230 | N4: แผนงาน/งาน | P4: 240 | S4: 250 | T4: 260 | U4: 260 | W4: 320 | Y4: 410 | Z4: รวม
A5: หมวด/ประเภทรายจ่าย | C5: 111 | D5: 112 | E5: 113 | F5: 121 | G5: 123 | H5: 211 | I5: 212 | J5: 214 | K5: 223 | L5: 231 | M5: 232 | N5: หมวด/ประเภทรายจ่าย | P5: 241 | Q5: 242 | R5: 244 | S5: 252 | T5: 262 | U5: 263 | V5: 264 | W5: 321 | X5: 322 | Y5: 411
A6: 100 | N6: 100 | Z6: =SUM(C6:Y6)-N6-O5 -> 0
B7: 101 | C7: =20400+11220+11220+7200+186000 -> 236040 | O7: 101 | Z7: =SUM(C7:Y7)-N7-O7 -> 236040
C8: =1750+880+880 -> 3510 | Z8: 3510
C9: =1750+880+880 -> 3510
B10: 102 | C10: =26660+16190+15050+12530 -> 70430 | D10: 9700 | E10: =10440+8290+23080+13910 -> 55720 | H10: 12240 | L10: 10440 | O10: 102 | P10: 33020 | Z10: 191550
B11: 103 | C11: =530+1050+2470+5600 -> 9650 | D11: 5300 | E11: =1680+4560+1710 -> 7950 | H11: 2760 | L11: 4560 | O11: 103 | P11: 1840 | Z11: 32060
B12: 105 | C12: =5600+3500+3500 -> 12600 | E12: =3500 -> 3500 | O12: 105 | P12: 3500 | Z12: 19600
A13: รวมเดือนนี้ | C13: =SUM(C7:C12) -> 335740 | D13: =SUM(D7:D12) -> 15000 | E13: =SUM(E7:E12) -> 67170 | H13: =SUM(H7:H12) -> 15000 | L13: =SUM(L10:L12) -> 15000 | N13: รวมเดือนนี้ | P13: =SUM(P6:P12) -> 38360 | Z13: =SUM(C13:Y13) -> 486270
A14: รวมตั้งแต่ต้นปี | C14: =335740+335740 -> 671480 | D14: =15000+15000 -> 30000 | E14: =67170+67170 -> 134340 | H14: =15000+15000 -> 30000 | L14: =15000+15000 -> 30000 | N14: รวมตั้งแต่ต้นปี | P14: =40508+38360 -> 78868 | Z14: =SUM(C14:Y14) -> 974688
A15: 120 | N15: 120 | Z15: =SUM(C15:Y15)-N15-O15 -> 0
B16: 121 | C16: 10540 | O16: 121 | Z16: =SUM(C16:Y16)-N16-O16 -> 10540
B17: 122 | C17: 1500 | O17: 122 | Z17: =SUM(C17:Y17)-N17-O17 -> 1500
A18: รวมเดือนนี้ | C18: =SUM(C16:C17) -> 12040 | N18: รวมเดือนนี้ | Z18: =SUM(C18:Y18) -> 12040
A19: รวมตั้งแต่ต้นปี | C19: =12040+12040 -> 24080 | N19: รวมตั้งแต่ต้นปี | Z19: =SUM(C19:Y19) -> 24080
A20: 130 | N20: 130 | Z20: =SUM(C20:Y20)-N20-O20 -> 0
B21: 131 | C21: =6790+5340 -> 12130 | E21: =7460+6530 -> 13990 | H21: 760 | O21: 131 | Q21: =6050 -> 6050 | Z21: 32930
B22: 132 | C22: =2210+3660 -> 5870 | E22: =1540+2660 -> 4200 | O22: 132 | Q22: =2950 -> 2950 | Z22: 13020
A23: รวมเดือนนี้ | C23: =SUM(C21:C22) -> 18000 | E23: =SUM(E21:E22) -> 18190 | H23: =SUM(H21:H22) -> 760 | I23: =SUM(I21:I22) -> 0 | N23: รวมเดือนนี้ | Q23: =SUM(Q21:Q22) -> 9000 | R23: =SUM(R21:R22) -> 0 | Z23: =SUM(C23:Y23) -> 45950
A24: รวมตั้งแต่ต้นปี | C24: =18000+18000 -> 36000 | E24: =18190+18190 -> 36380 | H24: =760+760 -> 1520 | N24: รวมตั้งแต่ต้นปี | Q24: =9000+9000 -> 18000 | Z24: =SUM(C24:Y24) -> 91900
A25: 200 | N25: 200 | Z25: 0
B26: 203 | C26: =2100 -> 2100 | O26: 203 | Z26: 2100
B27: 204 | O27: 204 | Z27: 0
B28: 205 | O28: 205 | Z28: 0
B29: 206 | C29: =2400+1950 -> 4350 | D29: 1250 | E29: =1250+1600 -> 2850 | G29: 1200 | L29: 1600 | O29: 206 | Z29: 11250
B30: 207 | E30: =1702+10000 -> 11702 | O30: 207 | Z30: 11702
B31: 208 | E31: =25229 -> 25229 | O31: 208 | Z31: 25229
B32: โบนัส | O32: โบนัส | Z32: =SUM(C32:Y32) -> 0
A33: รวมเดือนนี้ | C33: =SUM(C26:C32) -> 6450 | D33: 1250 | E33: 39781 | F33: 0 | G33: 1200 | H33: 0 | I33: 0 | K33: =SUM(K26:K32) -> 0 | L33: =SUM(L26:L32) -> 1600 | M33: =SUM(M25:M32) -> 0 | N33: รวมเดือนนี้ | P33: =SUM(P25:P32) -> 0 | Z33: =SUM(C33:Y33) -> 50281
A34: รวมตั้งแต่ต้นปี | C34: =4350+6450 -> 10800 | D34: =1250+1250 -> 2500 | E34: =2850+39781 -> 42631 | G34: =1200 -> 1200 | L34: =1600+1600 -> 3200 | N34: รวมตั้งแต่ต้นปี | P34: =4750 -> 4750 | Z34: =SUM(C34:Y34) -> 65081
A35: 250 | N35: 250 | Z35: =SUM(C35:Y35)-N35-O35 -> 0
B36: 251 | C36: =18000 -> 18000 | H36: =2688 -> 2688 | O36: 251 | P36: =6000 -> 6000 | Q36: =7100 -> 7100 | R36: =5000+6000+6000+6000 -> 23000 | Z36: =SUM(C36:Y36)-N36-O36 -> 56788
B37: 252 | O37: 252 | Z37: =SUM(C37:Y37)-N37-O37 -> 0
B38: 253 | C38: =1780+3000 -> 4780 | O38: 253 | Z38: =SUM(C38:Y38)-N38-O38 -> 4780
B39: 254 | C39: =2624 -> 2624 | E39: =7100+24000 -> 31100 | I39: =800+1200+1000+15600+2460 -> 21060 | O39: 254 | Z39: =SUM(C39:Y39)-N39-O39 -> 54784
A40: รวมเดือนนี้ | C40: =SUM(C36:C39) -> 25404 | D40: 0 | E40: 31100 | F40: 0 | G40: 0 | H40: 2688 | I40: 21060 | K40: =SUM(K36:K39) -> 0 | M40: =SUM(M36:M39) -> 0 | N40: รวมเดือนนี้ | P40: =SUM(P36:P39) -> 6000 | Q40: =SUM(Q36:Q39) -> 7100 | R40: =SUM(R36:R39) -> 23000 | S40: =SUM(S36:S39) -> 0 | T40: =SUM(T36:T39) -> 0 | U40: =SUM(U38:U39) -> 0 | V40: =SUM(V36:V39) -> 0 | W40: =SUM(W36:W39) -> 0 | X40: =SUM(X36:X39) -> 0 | Z40: =SUM(C40:Y40) -> 116352
A41: รวมตั้งแต่ต้นปี | C41: =8472+25404 -> 33876 | E41: =7344+31100 -> 38444 | H41: =2688 -> 2688 | I41: =21060 -> 21060 | N41: รวมตั้งแต่ต้นปี | P41: =6000 -> 6000 | Q41: =7100 -> 7100 | R41: =5000+23000 -> 28000 | Z41: =SUM(C41:Y41) -> 137168
A42: 270 | N42: 270 | Z42: =SUM(C42:Y42)-N42-O42 -> 0
B43: 271 | C43: =350+2628+11235 -> 14213 | E43: =300 -> 300 | J43: =8060 -> 8060 | O43: 271 | Z43: 22573
B44: 272 | O44: 272 | Z44: 0
B45: 273 | O45: 273 | Z45: 0
B46: 274 | O46: 274 | Z46: 0
B47: 275 | O47: 275 | Z47: 0
B48: 276 | C48: =5200 -> 5200 | O48: 276 | Q48: 1000 | R48: 4000 | Z48: 10200
B49: 277 | O49: 277 | Z49: 0
B50: 279 | O50: 279 | Z50: 0
B51: 280 | O51: 280 | Z51: 0
B52: 281 | O52: 281 | Z52: 0
B53: 282 | C53: =29700 -> 29700 | O53: 282
B54: - | O54: - | Z54: =SUM(C54:Y54) -> 0
A55: รวมเดือนนี้ | C55: =SUM(C43:C54) -> 49113 | D55: =SUM(D43:D54) -> 0 | E55: =SUM(E43:E54) -> 300 | G55: =SUM(G43:G54) -> 0 | I55: =SUM(I43:I54) -> 0 | J55: =SUM(J43:J54) -> 8060 | K55: =SUM(K43:K54) -> 0 | N55: รวมเดือนนี้ | P55: =SUM(P43:P54) -> 0 | Q55: =SUM(Q44:Q54) -> 1000 | R55: =SUM(R43:R54) -> 4000 | Z55: =SUM(C55:Y55) -> 62473
A56: รวมตั้งแต่ต้นปี | C56: =49113 -> 49113 | E56: =300 -> 300 | J56: =8060 -> 8060 | N56: รวมตั้งแต่ต้นปี | Q56: =1735+1000 -> 2735 | R56: =4000 -> 4000 | Z56: =SUM(C56:Y56) -> 64208
A57: 300 | N57: 300 | Z57: =SUM(C57:Y57)-N57-O57 -> 0
B58: 301 | C58: =14073.03 -> 14073.03 | O58: 301 | X58: 0 | Z58: =SUM(C58:Y58)-N58-O58 -> 14073.03
B59: 303 | O59: 303 | Z59: =SUM(C59:Y59)-N59-O59 -> 0
B60: 304 | C60: =957 -> 957 | E60: =649 -> 649 | O60: 304 | Z60: =SUM(C60:Y60)-N60-O60 -> 1606
B61: 305 | O61: 305 | Z61: =SUM(C61:Y61)-N61-O61 -> 0
A62: รวมเดือนนี้ | C62: =SUM(C58:C61) -> 15030.03 | E62: =SUM(E58:E61) -> 649 | N62: รวมเดือนนี้ | P62: =SUM(P58:P61) -> 0 | W62: =SUM(W58:W61) -> 0 | Z62: =SUM(C62:Y62) -> 15679.03
A63: รวมตั้งแต่ต้นปี | C63: =61154.71+15030.03 -> 76184.74 | E63: =649 -> 649 | N63: รวมตั้งแต่ต้นปี | W63: =9567.89 -> 9567.89 | Z63: =SUM(C63:Y63) -> 86401.63
A64: 400 | N64: 400 | Z64: =SUM(C64:Y64)-N64-O64 -> 0
B65: 403 | O65: 403 | Z65: =SUM(C65:Y65)-N65-O65 -> 0
A66: รวมเดือนนี้ | C66: =SUM(C65) -> 0 | I66: =SUM(I65) -> 0 | K66: =SUM(K65) -> 0 | N66: รวมเดือนนี้ | T66: =SUM(T65) -> 0 | U66: =SUM(U65) -> 0 | Z66: =SUM(C66:Y66) -> 0
A67: รวมตั้งแต่ต้นปี | N67: รวมตั้งแต่ต้นปี | Z67: =SUM(C67:Y67) -> 0
A68: 450 | N68: 450 | Z68: =SUM(C68:Y68)-N68-O68 -> 0
B69: 451 | O69: 451 | Z69: 0
B70: 454 | O70: 454 | Z70: 0
B71: 456 | O71: 456 | Z71: 0
B72: 457 | O72: 457 | Z72: 0
B73: 455 | O73: 455 | Z73: 0
E74: =6900 -> 6900 | O74: 466 | Z74: 6900
A75: รวมเดือนนี้ | C75: =SUM(C69:C74) -> 0 | D75: =SUM(D69:D74) -> 0 | E75: =SUM(E69:E74) -> 6900 | G75: =SUM(G69:G74) -> 0 | N75: รวมเดือนนี้ | P75: =SUM(P69:P74) -> 0 | Z75: =SUM(C75:Y75) -> 6900
A76: รวมตั้งแต่ต้นปี | E76: =6900 -> 6900 | N76: รวมตั้งแต่ต้นปี | Z76: =SUM(C76:Y76) -> 6900
A77: 500 | N77: 500 | Z77: =SUM(C77:Y77)-N77-O77 -> 0
B78: 509 | O78: 509 | Z78: =SUM(C78:Y78)-N78-O78 -> 0
B79: 516 | O79: 516 | Z79: =SUM(C79:Y79)-N79-O79 -> 0
B80: ท่อประปา | O80: ท่อประปา | Z80: =SUM(C80:Y80) -> 0
Z81: =SUM(C81:Y81)-N81-O81 -> 0
A82: รวมเดือนนี้ | N82: รวมเดือนนี้ | Q82: =SUM(Q78:Q81) -> 0 | Z82: =SUM(C82:Y82) -> 0
A83: รวมตั้งแต่ต้นปี | N83: รวมตั้งแต่ต้นปี | Z83: =SUM(C83:Y83) -> 0
A84: 550 | N84: 550 | Z84: =SUM(C84:Y84)-N84-O84 -> 0
B85: 553 | O85: 553 | Z85: =SUM(C85:Y85)-N85-O85 -> 0
A86: รวมเดือนนี้ | C86: =SUM(C85) -> 0 | I86: =SUM(I85) -> 0 | N86: รวมเดือนนี้ | Z86: =SUM(C86:Y86) -> 0
A87: รวมตั้งแต่ต้นปี | N87: รวมตั้งแต่ต้นปี | Z87: =SUM(C87:Y87) -> 0
A88: 000 | N88: 000 | Z88: =SUM(C88:Y88)-N88-O88 -> 0
B89: 2 | O89: 2 | Y89: =4500 -> 4500 | Z89: =SUM(C89:Y89)-N89-O89 -> 4500
B90: 3 | Y90: =1755500 -> 1755500 | Z90: =SUM(C90:Y90)-N90-O90 -> 1755500
B91: 4 | O91: 3 | Y91: =28000 -> 28000 | Z91: =SUM(C91:Y91)-N91-O91 -> 28000
O92: 4 | Y92: =25500 -> 25500 | Z92: =SUM(C92:Y92)-N92-O92 -> 25500
A93: รวมเดือนนี้ | N93: รวมเดือนนี้ | Y93: =SUM(Y89:Y92) -> 1813500 | Z93: =SUM(C93:Y93) -> 1813500
A94: รวมตั้งแต่ต้นปี | N94: รวมตั้งแต่ต้นปี | V94: =V14+V19+V24+V34+V41+V56+V62+V66+V75+V82+V86+V93 -> 0 | Y94: =211446+1813500 -> 2024946 | Z94: =SUM(C94:Y94) -> 2024946
A95: รวมตามแผนงาน | C95: =C14+C19+C24+C34+C41+C56+C63+C67+C76+C83+C87+C94 -> 901533.74 | D95: 32500 | E95: 259644 | F95: 0 | G95: 1200 | H95: 34208 | I95: 21060 | J95: 8060 | K95: 0 | L95: 33200 | M95: 0 | N95: รวมตามแผนงาน | P95: 89618 | Q95: 27835 | R95: 32000 | S95: 0 | T95: 0 | U95: 0 | V95: 0 | W95: 9567.89 | X95: 0 | Y95: 2024946 | Z95: 3475372.63
A99: =A18+A23+A28+A38+A45+A60+A67+A71+A80+A87+A91+A98 -> 

Sheet จ่ายจากเงินสะสม
A1: กระดาษทำการกระทบยอด
A2: รายจ่ายตามงบประมาณ (จ่ายจากเงินสะสม)
A3: ประจำเดือน ตุลาคม 2552
A4: แผนงาน/งาน | C4: 110 | F4: 120 | L4: รวม
A5: หมวด/ประเภทรายจ่าย | C5: 111 | D5: 112 | E5: 113 | F5: 121 | K5: 123 | L5: 211
A6: 450
B7: 451
B8: 454
B9: 456
B10: 457
B11: 455
B12: 466
A13: รวมเดือนนี้
A14: รวมตั้งแต่ต้นปี | C14: =SUM(C7:C13) -> 0
A15: 500
B16: 509
B17: 516
B18: ท่อประปา
B19: เหมืองส่งน้ำ
B20: สนามกีฬา
C21: 234900 | L21: =SUM(C21:K21) -> 234900
A22: รวมเดือนนี้ | C22: =SUM(C21) -> 234900 | L22: =SUM(L21) -> 234900
A23: รวมตั้งแต่ต้นปี | C23: =234900 -> 234900 | L23: =234900 -> 234900
AB68: =SUM(C68:AA68) -> 0
AB69: 0
AB70: 0
AB71: 0
AB72: 0
AB73: 0
C74: =SUM(C68:C73) -> 0 | D74: =SUM(D68:D73) -> 0 | K74: =SUM(K68:K73) -> 0 | R74: =SUM(R68:R73) -> 0 | AB74: 0
AB75: =SUM(C75:AA75) -> 0
AB77: =SUM(C77:AA77) -> 0
AB78: 0
AB79: 0
AB80: 0
AB81: 0
C82: 234900 | AB82: 234900
AB83: 0
C84: =SUM(C77:C83) -> 234900 | AB84: =SUM(C84:AA84) -> 234900

Sheet งบคงเหลือ
A1: กระดาษทำการกระทบยอด
A2: งบประมาณคงเหลือ
A3: ประจำเดือน ตุลาคม 2553
A4: แผนงาน/งาน | C4: 110 | F4: 120 | H4: 210 | J4: 210 | K4: 220 | L4: 230 | N4: แผนงาน/งาน | P4: 240 | S4: 250 | T4: 260 | U4: 260 | W4: 320 | Y4: 410 | Z4: รวม
A5: หมวด/ประเภทรายจ่าย | C5: 111 | D5: 112 | E5: 113 | F5: 121 | G5: 123 | H5: 211 | I5: 212 | J5: 214 | K5: 223 | L5: 231 | M5: 232 | N5: หมวด/ประเภทรายจ่าย | P5: 241 | Q5: 242 | R5: 244 | S5: 252 | T5: 262 | U5: 263 | V5: 264 | W5: 321 | X5: 322 | Y5: 411
A6: 100 | N6: 100 | Z6: =SUM(C6:Y6)-N6-O6 -> 0
B7: 101 | C7: 24800 | O7: 101 | Z7: 24800
C8: 133020 | Z8: 133020
B9: 102 | C9: 470930 | D9: 138650 | E9: 531950 | H9: 111110 | L9: 120530 | O9: 102 | P9: 390670 | Z9: 1763840
B10: 103 | C10: 33000 | D10: 14650 | E10: 49500 | H10: 16500 | L10: 16500 | O10: 103 | P10: 33000 | Z10: 163150
B11: 105 | C11: 38500 | O11: 105 | Z11: 38500
B12: 106 | C12: 66000 | O12: 106 | Z12: 66000
A13: รวมเดือนนี้ | C13: =SUM(C7:C12) -> 766250 | D13: =SUM(D7:D12) -> 153300 | E13: =SUM(E7:E12) -> 581450 | H13: =SUM(H7:H12) -> 127610 | L13: =SUM(L7:L12) -> 137030 | N13: รวมเดือนนี้ | P13: =SUM(P6:P12) -> 423670 | Z13: =SUM(C13:Y13) -> 2189310
A14: รวมตั้งแต่ต้นปี | C14: =2344450 -> 2344450 | D14: =153300 -> 153300 | E14: =581450 -> 581450 | H14: =127610 -> 127610 | L14: =137030 -> 137030 | N14: รวมตั้งแต่ต้นปี | P14: =423670 -> 423670 | Z14: =SUM(C14:Y14) -> 3767510
A15: 120 | N15: 120 | Z15: =SUM(C15:Y15)-N15-O15 -> 0
B16: 121 | C16: 91800 | O16: 121 | Z16: =SUM(C16:Y16)-N16-O16 -> 91800
B17: 122 | C17: 16500 | O17: 122 | Z17: =SUM(C17:Y17)-N17-O17 -> 16500
A18: รวมเดือนนี้ | C18: =SUM(C16:C17) -> 108300 | N18: รวมเดือนนี้ | Z18: =SUM(C18:Y18) -> 108300
A19: รวมตั้งแต่ต้นปี | C19: =108300 -> 108300 | N19: รวมตั้งแต่ต้นปี | Z19: =SUM(C19:Y19) -> 108300
A20: 130 | N20: 130 | Z20: =SUM(C20:Y20)-N20-O20 -> 0
B21: 131 | C21: 73420 | E21: =180400 -> 180400 | F21: 91800 | I21: =183980 -> 183980 | O21: 131 | Z21: =SUM(C21:Y21)-N21-O21 -> 529600
A22: รวมเดือนนี้ | C22: =73420 -> 73420 | E22: =SUM(E21) -> 180400 | F22: =SUM(F21) -> 91800 | I22: =183980 -> 183980 | N22: รวมเดือนนี้ | Z22: =SUM(C22:Y22) -> 529600
A23: รวมตั้งแต่ต้นปี | C23: =73420 -> 73420 | E23: =180400 -> 180400 | F23: =91800 -> 91800 | I23: =183980 -> 183980 | N23: รวมตั้งแต่ต้นปี | Z23: =SUM(C23:Y23) -> 529600
A24: แผนงาน/งาน | C24: 110 | F24: 120 | H24: 210 | J24: 210 | K24: 220 | L24: 230 | N24: แผนงาน/งาน | P24: 240 | S24: 250 | T24: 260 | U24: 260 | W24: 320 | Y24: 410 | Z24: รวม
A25: หมวด/ประเภทรายจ่าย | C25: 111 | D25: 112 | E25: 113 | F25: 121 | G25: 123 | H25: 211 | I25: 212 | J25: 214 | K25: 223 | L25: 231 | M25: 232 | N25: หมวด/ประเภทรายจ่าย | P25: 241 | Q25: 242 | R25: 244 | S25: 252 | T25: 262 | U25: 263 | V25: 264 | W25: 321 | X25: 322 | Y25: 411
A26: 200 | N26: 200 | Z26: =SUM(C26:Y26)-N26-O26 -> 0
B27: 203 | C27: 40000 | D27: 35000 | E27: 10000 | G27: 10000 | K27: =10000 -> 10000 | L27: 10000 | O27: 203 | P27: 50000 | Z27: 165000
B28: 204 | C28: 80000 | O28: 204 | Z28: 80000
B29: 205 | C29: 30000 | D29: 10000 | E29: 30000 | F29: 5000 | H29: 10000 | I29: 5000 | L29: 5000 | O29: 205 | P29: 30000 | Z29: 125000
B30: 206 | C30: 46900 | E30: 13750 | L30: 18400 | O30: 206 | P30: 19000 | Z30: 98050
B31: 207 | C31: 30000 | D31: 20000 | E31: 30000 | L31: 10000 | O31: 207 | Z31: 90000
B32: 208 | C32: 40000 | D32: 15000 | E32: 60000 | H32: 10000 | L32: 20000 | O32: 208 | P32: 60000 | Z32: 205000
B33: โบนัส | C33: 166000 | D33: 36000 | E33: 200000 | F33: 20000 | H33: 30000 | I33: 60000 | L33: 30000 | O33: โบนัส | P33: 105000 | Z33: =SUM(C33:Y33) -> 647000
A34: รวมเดือนนี้ | C34: =SUM(C27:C33) -> 432900 | D34: 116000 | E34: 343750 | F34: 25000 | G34: 10000 | H34: 50000 | I34: 65000 | K34: =SUM(K27:K33) -> 10000 | L34: =SUM(L26:L33) -> 93400 | N34: รวมเดือนนี้ | P34: =SUM(P26:P33) -> 264000 | Z34: =SUM(C34:Y34) -> 1410050
A35: รวมตั้งแต่ต้นปี | C35: =432900 -> 432900 | D35: =116000 -> 116000 | E35: =343750 -> 343750 | F35: =25000 -> 25000 | G35: =10000 -> 10000 | H35: =50000 -> 50000 | I35: =65000 -> 65000 | K35: =10000 -> 10000 | L35: =93400 -> 93400 | N35: รวมตั้งแต่ต้นปี | P35: =264000 -> 264000 | Z35: =SUM(C35:Y35) -> 1410050
A36: 250 | N36: 250 | Z36: =SUM(C36:Y36)-N36-O36 -> 0
B37: 251 | C37: 283648 | D37: 20000 | E37: 80000 | F37: 10000 | G37: 20000 | H37: 20000 | I37: 30000 | K37: 30000 | L37: 20000 | O37: 251 | P37: 160000 | Q37: 471240 | R37: 120000 | V37: 50000 | W37: 10000 | X37: 100000 | Z37: =SUM(C37:Y37)-N37-O37 -> 1424888
B38: 252 | O38: 252 | Z38: =SUM(C38:Y38)-N38-O38 -> 0
B39: 253 | C39: 80000 | E39: 200000 | M39: 0 | O39: 253 | Z39: =SUM(C39:Y39)-N39-O39 -> 280000
B40: 254 | C40: 398500 | D40: 135000 | E40: 619700 | F40: 15000 | G40: 110000 | H40: 20000 | I40: 290000 | L40: 15000 | M40: 50000 | O40: 254 | P40: 30000 | R40: 50000 | S40: =235000 -> 235000 | T40: 300000 | U40: =100000 -> 100000 | V40: 30000 | W40: 20000 | X40: 40000 | Z40: =SUM(C40:Y40)-N40-O40 -> 2458200
A41: รวมเดือนนี้ | C41: =SUM(C37:C40) -> 762148 | D41: 155000 | E41: 899700 | F41: 25000 | G41: 130000 | H41: 40000 | I41: 320000 | K41: =SUM(K37:K40) -> 30000 | L41: =SUM(L37:L40) -> 35000 | M41: =SUM(M37:M40) -> 50000 | N41: รวมเดือนนี้ | P41: =SUM(P37:P40) -> 190000 | Q41: 471240 | R41: 170000 | S41: 235000 | T41: 300000 | U41: =SUM(U39:U40) -> 100000 | V41: =SUM(V37:V40) -> 80000 | W41: =SUM(W37:W40) -> 30000 | X41: =SUM(X37:X40) -> 140000 | Z41: =SUM(C41:Y41) -> 4163088
A42: รวมตั้งแต่ต้นปี | C42: =762148 -> 762148 | D42: =155000 -> 155000 | E42: =899700 -> 899700 | F42: =25000 -> 25000 | G42: =130000 -> 130000 | H42: =40000 -> 40000 | I42: =320000 -> 320000 | K42: =30000 -> 30000 | L42: =35000 -> 35000 | M42: =50000 -> 50000 | N42: รวมตั้งแต่ต้นปี | P42: =190000 -> 190000 | Q42: =471240 -> 471240 | R42: =170000 -> 170000 | S42: =235000 -> 235000 | T42: =300000 -> 300000 | U42: =100000 -> 100000 | V42: =80000 -> 80000 | W42: =30000 -> 30000 | X42: =140000 -> 140000 | Z42: =SUM(C42:Y42) -> 4163088
A43: แผนงาน/งาน | C43: 110 | F43: 120 | H43: 210 | J43: 210 | K43: 220 | L43: 230 | N43: แผนงาน/งาน | P43: 240 | S43: 250 | T43: 260 | U43: 260 | W43: 320 | Y43: 410 | Z43: รวม
A44: หมวด/ประเภทรายจ่าย | C44: 111 | D44: 112 | E44: 113 | F44: 121 | G44: 123 | H44: 211 | I44: 212 | J44: 214 | K44: 223 | L44: 231 | M44: 232 | N44: หมวด/ประเภทรายจ่าย | P44: 241 | Q44: 242 | R44: 244 | S44: 252 | T44: 262 | U44: 263 | V44: 264 | W44: 321 | X44: 322 | Y44: 411
A45: 270 | N45: 270 | Z45: =SUM(C45:Y45)-N45-O45 -> 0
B46: 271 | C46: 97744 | E46: 26665.95 | J46: 215000 | O46: 271 | P46: 20000 | Z46: 359409.95
B47: 272 | C47: 10000 | O47: 272 | Q47: 200000 | Z47: 210000
B48: 273 | C48: 15000 | O48: 273 | Z48: 15000
B49: 274 | C49: 10000 | O49: 274 | P49: 30000 | Z49: 40000
B50: 275 | C50: 20000 | E50: 7000 | G50: 35000 | O50: 275 | P50: 4000 | Z50: 66000
B51: 276 | C51: 80000 | E51: 5000 | G51: 50000 | K51: 35000 | O51: 276 | P51: 10000 | R51: 20000 | Z51: =SUM(C51:Y51) -> 200276
B52: 277 | K52: 50000 | O52: 277 | R52: 50000 | Z52: 100277
B53: 279 | C53: 10000 | O53: 279 | P53: 5000 | Z53: 15279
B54: 280 | O54: 280 | Z54: 280
B55: 281 | O55: 281 | Z55: 281
B56: 282 | C56: 6508 | D56: 15000 | E56: 11750 | H56: 5689 | O56: 282 | P56: 4240 | Z56: 43469
B57: - | G57: 10000 | I57: 1015000 | O57: - | Z57: 1025000
A58: รวมเดือนนี้ | C58: =SUM(C46:C57) -> 249252 | D58: =SUM(D46:D57) -> 15000 | E58: =SUM(E46:E57) -> 50415.95 | G58: =SUM(G46:G57) -> 95000 | H58: =SUM(H46:H57) -> 5689 | I58: =SUM(I46:I57) -> 1015000 | J58: =SUM(J46:J57) -> 215000 | K58: =SUM(K46:K57) -> 85000 | N58: รวมเดือนนี้ | P58: =SUM(P46:P57) -> 73240 | Q58: =SUM(Q47:Q57) -> 200000 | R58: =SUM(R46:R57) -> 70000 | Z58: 2073596.95
A59: รวมตั้งแต่ต้นปี | C59: =249252 -> 249252 | D59: =15000 -> 15000 | E59: =50415.95 -> 50415.95 | G59: =95000 -> 95000 | H59: =5689 -> 5689 | I59: =1015000 -> 1015000 | J59: =215000 -> 215000 | K59: =85000 -> 85000 | N59: รวมตั้งแต่ต้นปี | P59: =73240 -> 73240 | Q59: =200000 -> 200000 | R59: =70000 -> 70000 | Z59: 2073596.95
A60: แผนงาน/งาน | C60: 110 | F60: 120 | H60: 210 | J60: 210 | K60: 220 | L60: 230 | N60: แผนงาน/งาน | P60: 240 | S60: 250 | T60: 260 | U60: 260 | W60: 320 | Y60: 410 | Z60: รวม
A61: หมวด/ประเภทรายจ่าย | C61: 111 | D61: 112 | E61: 113 | F61: 121 | G61: 123 | H61: 211 | I61: 212 | J61: 214 | K61: 223 | L61: 231 | M61: 232 | N61: หมวด/ประเภทรายจ่าย | P61: 241 | Q61: 242 | R61: 244 | S61: 252 | T61: 262 | U61: 263 | V61: 264 | W61: 321 | X61: 322 | Y61: 411
A62: 300 | N62: 300 | Z62: =SUM(C62:Y62)-N62-O62 -> 0
B63: 301 | C63: 91923.89 | O63: 301 | W63: 100000 | X63: 0 | Z63: 191923.89
B64: 302 | C64: 2000 | O64: 302 | Z64: 2000
B65: 303 | C65: 29287.54 | O65: 303 | Z65: 29287.54
B66: 304 | C66: 20000 | E66: 20000 | O66: 304 | P66: 5000 | Z66: 45000
B67: 305 | C67: 32893.35 | O67: 305 | Z67: 32893.35
A68: รวมเดือนนี้ | C68: =SUM(C63:C67) -> 176104.78 | E68: =SUM(E63:E67) -> 20000 | N68: รวมเดือนนี้ | P68: =SUM(P63:P67) -> 5000 | W68: =SUM(W63:W67) -> 100000 | Z68: =SUM(C68:Y68) -> 301104.78
A69: รวมตั้งแต่ต้นปี | C69: =176104.78 -> 176104.78 | E69: =20000 -> 20000 | N69: รวมตั้งแต่ต้นปี | P69: =5000 -> 5000 | W69: =100000 -> 100000 | Z69: =SUM(C69:Y69) -> 301104.78
A70: 400 | N70: 400 | Z70: =SUM(C70:Y70)-N70-O70 -> 0
B71: 403 | C71: 5000 | I71: 1262080 | K71: 120000 | O71: 403 | S71: 84000 | T71: =175000 -> 175000 | U71: 105000 | Z71: 1751080
A72: รวมเดือนนี้ | C72: =SUM(C71) -> 5000 | I72: =SUM(I71) -> 1262080 | K72: =SUM(K71) -> 120000 | N72: รวมเดือนนี้ | S72: 84000 | T72: =SUM(T71) -> 175000 | U72: =SUM(U71) -> 105000 | Z72: =SUM(C72:Y72) -> 1751080
A73: รวมตั้งแต่ต้นปี | C73: =5000 -> 5000 | I73: =1262080 -> 1262080 | K73: =120000 -> 120000 | N73: รวมตั้งแต่ต้นปี | S73: =84000 -> 84000 | T73: =175000 -> 175000 | U73: =105000 -> 105000 | Z73: =SUM(C73:Y73) -> 1751080
A74: 450 | N74: 450 | Z74: 0
B75: 451 | O75: 451 | Z75: 0
B76: 454 | O76: 454 | Z76: 0
B77: 456 | O77: 456 | Z77: 0
B78: 457 | E78: 13000 | O78: 457 | Z78: 13000
B79: 455 | O79: 455 | Z79: 0
B80: 466 | E80: 35000 | O80: 466 | Z80: 35000
A81: รวมเดือนนี้ | C81: =SUM(C75:C80) -> 0 | D81: =SUM(D75:D80) -> 0 | E81: =SUM(E75:E80) -> 48000 | G81: =SUM(G75:G80) -> 0 | N81: รวมเดือนนี้ | P81: =SUM(P75:P80) -> 0 | Z81: =SUM(C81:Y81) -> 48000
A82: รวมตั้งแต่ต้นปี | E82: =48000 -> 48000 | N82: รวมตั้งแต่ต้นปี | Z82: =SUM(C82:Y82) -> 48000
A83: แผนงาน/งาน | C83: 110 | F83: 120 | H83: 210 | J83: 210 | K83: 220 | L83: 230 | N83: แผนงาน/งาน | P83: 240 | S83: 250 | T83: 260 | U83: 260 | W83: 320 | Y83: 410 | Z83: รวม
A84: หมวด/ประเภทรายจ่าย | C84: 111 | D84: 112 | E84: 113 | F84: 121 | G84: 123 | H84: 211 | I84: 212 | J84: 214 | K84: 223 | L84: 231 | M84: 232 | N84: หมวด/ประเภทรายจ่าย | P84: 241 | Q84: 242 | R84: 244 | S84: 252 | T84: 262 | U84: 263 | V84: 264 | W84: 321 | X84: 322 | Y84: 411
A85: 500 | N85: 500 | Z85: =SUM(C85:Y85)-N85-O85 -> 0
B86: 509 | O86: 509 | Z86: =SUM(C86:Y86)-N86-O86 -> 0
B87: 516 | O87: 516 | Q87: 2293000 | Z87: =SUM(C87:Y87)-N87-O87 -> 2293000
B88: ท่อประปา | O88: ท่อประปา | Z88: =SUM(C88:Y88) -> 0
Z89: =SUM(C89:Y89)-N89-O89 -> 0
A90: รวมเดือนนี้ | N90: รวมเดือนนี้ | Q90: =SUM(Q86:Q89) -> 2293000 | Z90: =SUM(C90:Y90) -> 2293000
A91: รวมตั้งแต่ต้นปี | N91: รวมตั้งแต่ต้นปี | Q91: =2293000 -> 2293000 | Z91: =SUM(C91:Y91) -> 2293000
A92: 550 | N92: 550 | Z92: =SUM(C92:Y92)-N92-O92 -> 0
B93: 553 | C93: 30000 | I93: 237250 | O93: 553 | Z93: =SUM(C93:Y93)-N93-O93 -> 267250
A94: รวมเดือนนี้ | C94: =SUM(C93) -> 30000 | I94: =SUM(I93) -> 237250 | N94: รวมเดือนนี้ | Z94: =SUM(C94:Y94) -> 267250
A95: รวมตั้งแต่ต้นปี | C95: =30000 -> 30000 | I95: =237250 -> 237250 | N95: รวมตั้งแต่ต้นปี | Z95: =SUM(C95:Y95) -> 267250
A96: 000 | N96: 000 | Z96: =SUM(C96:Y96)-N96-O96 -> 0
B97: 2 | O97: 2 | Y97: 536474 | Z97: =SUM(C97:Y97)-N97-O97 -> 536474
B98: 3 | O98: 3 | Z98: =SUM(C98:Y98)-N98-O98 -> 0
B99: 4 | O99: 4 | Y99: 3222000 | Z99: =SUM(C99:Y99)-N99-O99 -> 3222000
A100: รวมเดือนนี้ | N100: รวมเดือนนี้ | Y100: =SUM(Y97:Y99) -> 3758474 | Z100: =SUM(C100:Y100) -> 3758474
A101: รวมตั้งแต่ต้นปี | N101: รวมตั้งแต่ต้นปี | Y101: =3758474 -> 3758474 | Z101: =SUM(C101:Y101) -> 3758474
A102: รวมตามแผนงาน | C102: =C14+C19+C23+C35+C42+C59+C69+C73+C82+C91+C95+C101 -> 4181574.78 | D102: 439300 | E102: 2123715.95 | F102: 141800 | G102: 235000 | H102: 223299 | I102: 3083310 | J102: 215000 | K102: 245000 | L102: 265430 | M102: 50000 | N102: รวมตามแผนงาน | P102: =P14+P19+P23+P35+P42+P59+P69+P73+P82+P91+P95+P101 -> 955910 | Q102: 2964240 | R102: 240000 | S102: 319000 | T102: 475000 | U102: 205000 | V102: 80000 | W102: 130000 | X102: 140000 | Y102: 3758474 | Z102: =SUM(C102:Y102) -> 20471053.73

Sheet โอนงบประมาณ
A1: กระดาษทำการกระทบยอด
A2: การโอนงบประมาณรายจ่าย
A3: เดือน ตุลาคม 2552
A4: โอนงบประมาณ เพิ่ม +
A5: โอนงบประมาณ (ลด) -
A6: แผนงาน/งาน | C6: 110 | F6: 120 | H6: 210 | J6: 210 | K6: 220 | L6: 230 | N6: 240 | Q6: 250 | R6: 260 | S6: 260 | T6: 320 | V6: 410 | W6: รวม
A7: หมวด/ประเภทรายจ่าย | C7: 111 | D7: 112 | E7: 113 | F7: 121 | G7: 123 | H7: 211 | I7: 212 | J7: 214 | K7: 223 | L7: 231 | M7: 232 | N7: 241 | O7: 242 | P7: 244 | Q7: 252 | R7: 262 | S7: 263 | T7: 321 | U7: 322 | V7: 411
A8: 100
B9: 101 | C9: 1,596,240 + | L9: . | W9: =C9 -> 1,596,240 +
B10: 102
B11: 103
B12: 105
B13: 106
A14: 120
B15: 121
B16: 122
A17: 130
B18: 131
A19: 200
B20: 201 | C20: (1,596,240 ) - | W20: =C20 -> (1,596,240 ) -
B21: 203
B22: 204
B23: 205
B24: 206
B25: 207
B26: 208
A27: 250
B28: 251
B29: 252
B30: 253
B31: 254
A32: 270
B33: 271
B34: 272
B35: 273
B36: 274
B37: 275
B38: 276
B39: 277
B40: 279
B41: 280
B42: 281
B43: 282
B44: -
A45: 300
B46: 301
B47: 302
B48: 303
B49: 304
B50: 305
A51: 400
B52: 403
A53: 450
B54: 451
B55: 454
B56: 456
B57: 457
B58: 455
B59: 466
A60: 500
B61: 509
B62: 516
B63: ท่อประปา
B64: เหมืองส่งน้ำ
B65: สนามกีฬา

Sheet เงินค้ำ
A2: องค์การบริหารส่วนตำบลหัวไทร อำเภอหัวไทร จังหวัดนครศรีธรรมราช
A3: ทะเบียนคุมเงินเงินมัดจำประกันสัญญา
A4: ประจำเดือน ตุลาคม 2557
A5: ที่ | B5: หจก./บริษัท/ร้าน | C5: วันที่รับ | D5: ยอดเงิน | E5: กำหนดจ่ายคืน | F5: คงเหลือ
A6: 1 | B6: หจก.ทิพรัตน์การโยธา | C6: 20 มี.ค 55 | D6: 10000 | E6: 22 เม.ย 57 | F6: =D6:D61 -> 10000
A7: 2 | B7: หจก.จิรวัฒน์พาณิชย์ชะอวด | C7: 22 มี.ค 55 | D7: 31400 | E7: 11 มิ.ย 57 | F7: =D7:D65 -> 31400
A8: 3 | B8: หจก.แสงอินทร์จันทร์การโยธา | C8: 6 ก.ค 55 | D8: 5000 | E8: 8 ส.ค 57 | F8: =D8:D66 -> 5000
A9: 4 | B9: หจก. ชณาวุฒิการโยธา | C9: 24 ก.ค 55 | D9: 133050 | E9: 21 ก.พ 58 | F9: =D9:D67 -> 133050
A10: 5 | B10: ร้านนลวรรณการช่าง | C10: 28 ก.ย 55 | D10: 19000 | E10: 26 พ.ย 56 | F10: =D10:D68 -> 19000
A11: 6 | B11: ร้านวิโรจน์การช่าง | C11: 12 ก.พ 56 | D11: 18975 | E11: 15 มี.ค 58 | F11: =D11:D70 -> 18975
A12: 7 | B12: หจก.อมรโอเอเซ็นเตอร์ | C12: 20 มี.ค 56 | D12: 2600 | E12: 19 มี.ค 57 | F12: =D12:D71 -> 2600
A13: 8 | B13: ร้านชวลิตการก่อสร้าง | C13: 21 พ.ค 56 | D13: 17000 | F13: =D13:D72 -> 17000
A14: 9 | B14: ร้านบุญแก้วการช่าง | C14: 4 มิ.ย 56 | D14: 12150 | F14: =D14:D87 -> 12150
A15: 10 | B15: ร้านบ่อล้อแอร์ แอนด์ ซาวด์ | C15: 3 ก.ค 56 | D15: 4875 | F15: =D15:D88 -> 4875
A16: 11 | B16: หจก.จิรภัทรกิจ บี.ซี | C16: 26 ก.ค 56 | D16: 4450 | F16: =D16:D89 -> 4450
A17: 12 | B17: ร้านวิโรจน์การช่าง | C17: 21 ส.ค 56 | D17: 4950 | F17: =D17:D97 -> 4950
A18: 13 | B18: หจก.ศิริมงคลชัยนคร | C18: 29 ส.ค 56 | D18: 49400 | F18: =D18:D98 -> 49400
A19: 14 | B19: ร้านบ่อล้อแอร์ แอนด์ ซาวด์ | C19: 20 ก.ย 56 | D19: 4994 | F19: =D19:D99 -> 4994
A20: 15 | B20: หจก.สี่พี่น้องการช่าง | C20: 20 ก.ย 56 | D20: 21150 | F20: =D20:D97 -> 21150
A21: 16 | B21: ร้านอรวรรณการก่อสร้าง | C21: 20 ก.ย 56 | D21: 20975 | F21: =D21:D98 -> 20975
A22: 17 | B22: นายอดิศักดิ์ คุ้มสังข์ | C22: 18 พ.ย 57 | D22: 1200 | F22: =D22:D99 -> 1200
F34: =SUM(F6:F33) -> 361169

Sheet เงินมัดจำค้ำประกัน
B1: องค์การบริหารส่วนตำบลหัวไทร อำเภอหัวไทร จังหวัดนครศรีธรรมราช
B2: ทะเบียนคุมหนังสือค้ำประกันเงินมัดจำประกันสัญญา
B3: ประจำเดือน ตุลาคม 2557
B4: ที่ | C4: หจก./บริษัท/ร้าน | D4: วันที่รับ | E4: ยอดเงิน | F4: กำหนดจ่ายคืน | G4: หมายเหตุ
B6: 1 | C6: หจก.นภัสรการโยธา | D6: 10 ก.ค 55 | E6: 60000 | F6: 30 ส.ค 57 | G6: =E6:E9 -> 60000
B7: 2 | C7: หจก.นภัสรการโยธา | D7: 26 มี.ค 56 | E7: 16450 | F7: 26 เม.ย 57 | G7: =E7:E23 -> 16450
B8: 4 | C8: หจก.นภัสรการโยธา | D8: 23 พ.ค 56 | E8: 14140 | F8: 25 มิ.ย 57 | G8: =E8:E10 -> 14140
B9: 5 | C9: หจก.นภัสรการโยธา | D9: 27 พ.ค 56 | E9: 15850 | F9: 3 ก.ค 57 | G9: =E9:E10 -> 15850
B10: 6 | C10: หจก.นภัสรการโยธา | D10: 30 พ.ค 56 | E10: 10000 | F10: 14 มิ.ย 57 | G10: =E10:E11 -> 10000
B11: 6 | C11: บริษัท เอส พี เอคอมพฯ | D11: 1 ส.ค 56 | E11: 6490 | F11: 13 ส.ค 57 | G11: =E11:E12 -> 6490
B12: 6 | C12: หจก.นภัสรการโยธา | D12: 3 ก.ย 56 | E12: 12850 | G12: =E12:E13 -> 12850

Sheet รายงานความเข้ากันได้
B1: รายงานความเข้ากันได้สำหรับ งบประจำเดือน ต.ค 56.xls
B2: ทำงานบน 13/11/2013 10:31
B4: คุณลักษณะต่อไปนี้ในสมุดงานนี้ไม่ได้รับการสนับสนุนโดย Excel รุ่นก่อนหน้า คุณลักษณะเหล่านี้อาจสูญหายหรือลดความสามารถลงเมื่อคุณบันทึกสมุดงานนี้ในรูปแบบแฟ้มรุ่นก่อนหน้านี้
B6: ความไม่เข้ากันที่ไม่ร้ายแรง | E6: จำนวนที่เกิดขึ้น
B8: มีบางเซลล์หรือลักษณะในสมุดงานนี้มีการจัดรูปแบบที่ไม่ได้รับการสนับสนุนโดยรูปแบบแฟ้มที่เลือก รูปแบบเหล่านี้จะถูกแปลงเป็นรูปแบบที่ใกล้เคียงที่สุดที่มีอยู่ | E8: 13

Sheet Sheet1
